Cogmind - Beta 17 @@@ ROGUE MODE // 2026.06.23 @ 18:00:33 Player: PTS Result: Destroyed by XU-0GS(R) with Subdweller Beam Cannon Performance ------------- Evolutions (0) 0 Regions Visited (2) 400 Robots Destroyed (20) 100 Value Destroyed (459) 459 Prototype IDs (0) 0 Alien Tech Used (0) 0 Bonus (0) 0 TOTAL SCORE: 959 Bonus ------- None Cogmind --------- Core Integrity 0/250 Matter 300/300 Energy 200/200 System Corruption 1% Temperature Cool (9) Movement Treading (160) Location -10/Subcaves Parts ------- > --- POWER (1) -------- Subdweller Power Source > --- PROPULSION (2) --- Spiked Treads > --- UTILITY (2) ------ Small Storage Unit > --- WEAPON (2) ------- Beam Rifle > --- INVENTORY (8) ---- Ion Engine Light Treads Small Laser Assault Rifle Assault Rifle Mining Laser Mining Laser Peak State ------------ > --- POWER ------------ Subdweller Power Source > --- PROPULSION ------- Light Treads Spiked Treads > --- UTILITY ---------- Small Storage Unit Propulsion Shielding > --- WEAPON ----------- Beam Rifle Subdweller Machine Gun > --- INVENTORY -------- Ion Engine Light Treads Small Laser Assault Rifle Assault Rifle Mining Laser Mining Laser [Rating: 11] Favorites ----------- Power Ion Engine Engine Ion Engine Power Core Light Nuclear Core Propulsion Light Treads Treads Light Treads Utility Small Storage Unit Device Structural Scanner Storage Small Storage Unit Processor Transport Network Coupler Protection Propulsion Shielding Weapon Small Laser Energy Gun Small Laser Ballistic Gun Assault Rifle Special Weapon Mining Laser Slashing Weapon Mining Claw Build | -11 -10 -10 ------- Run | Yrd Mat Sub Slots Evolved . | . . . Power . | . . . Propulsion . | . . . Utility . | . . . Weapon . | . . . Parts Attached 24 | 8 9 7 Power 5 | 2 2 1 Engine 4 | 2 1 1 Core 1 | . 1 . Reactor . | . . . Propulsion 4 | 2 . 2 Treads 4 | 2 . 2 Leg . | . . . Wheel . | . . . Hover . | . . . Flight . | . . . Utility 6 | 2 2 2 Device 2 | 1 1 . Storage 2 | 1 1 . Processor 1 | . . 1 Hackware . | . . . Protection 1 | . . 1 Artifact . | . . . Weapon 9 | 2 5 2 Energy Gun 4 | 1 2 1 Energy Cannon . | . . . Ballistic Gun 3 | 1 1 1 Ballistic Cannon . | . . . Launcher . | . . . Special Weapon 1 | . 1 . Impact Weapon . | . . . Slashing Weapon 1 | . 1 . Piercing Weapon . | . . . Special Melee Weapon . | . . . Unidentified Prototypes . | . . . Parts Lost 9 | . 4 5 Power 2 | . 1 1 Propulsion 3 | . 2 1 Utility 2 | . . 2 Weapon 2 | . 1 1 Highest Loss Streak 3 | . 2 3 To Critical Strikes . | . . . Average Backups 6 | 1 6 7 Power 1 | . 1 1 Propulsion . | . . . Utility . | . . . Weapon 3 | . 3 5 Tool/Special . | . . . Unused Backups 4 | . . 4 Power . | . . . Propulsion 1 | . . 1 Utility . | . . . Weapon 3 | . . 3 Tool/Special . | . . . Average Slot Usage (%) 92 | . 98 82 Engine 11 | . 11 11 Core 1 | . 2 . Treads 22 | . 27 15 Device 10 | . 14 4 Storage 14 | . 14 14 Protection 2 | . . 6 Energy Gun 14 | . 14 14 Ballistic Gun 8 | . 10 5 Slashing Weapon 4 | . 2 7 Peak Build Rating 11 | 9 9 11 Average Rating 7 | 6 7 7 On Entrance 4 | . 9 5 Avg Prop Armor Cover (%) . | . . . Naked Turns . | . . . Heaviest Build 89 | 14 89 18 Greatest Support 40 | 40 40 40 Greatest Overweight (x) 4 | 1 4 4 Average Overweight (x) . | . . . Largest Inventory Capacity 25 | 8 25 8 Average Capacity 8 | 7 8 8 Most Carried 8 | 3 8 8 Average Carried 6 | 1 6 7 Final Capacity 8 | 8 8 8 Final Carried 8 | 3 8 7 Class Distribution -------------------- 83% | Mutant 16% | Scavenger-Mutant Dominant Class ---------------- Mutant | -10/Materials Mutant | -10/Subcaves Resources | -11 -10 -10 ----------- Run | Yrd Mat Sub Matter Collected 533 | 301 207 25 Remotely . | . . . Salvage Created 726 | 136 489 101 Parts 58 | 15 39 4 Haulers Intercepted 1 | . 1 . Recyclers Shooed . | . . . Parts Field Recycled . | . . . Retrieved Matter . | . . . Parts Self-Destructed 4 | . . 4 Prevented . | . . . Parts Restored . | . . . Kills | -11 -10 -10 ------- Run | Yrd Mat Sub Combat Hostiles Destroyed 10 | . 8 2 Melee 2 | . . 2 Guns 8 | . 8 . Classes Destroyed 8 | 3 4 1 Worker 1 | 1 . . Builder 2 | . 2 . Tunneler 3 | 2 1 . Hauler 1 | . 1 . Recycler 1 | 1 . . Watcher 2 | . 2 . Grunt 9 | . 8 1 Sentry 1 | . . 1 Best Kill Streak 4 | 2 4 1 Combat Bots Only 4 | . 4 1 Max Kills in Single Turn 2 | 1 2 1 Gunslinging 1 | . 1 . Exploded . | . . . Melee 1 | . . 1 Uniques/NPCs Destroyed . | . . . Combat | -11 -10 -10 -------- Run | Yrd Mat Sub Hostile Shots Fired 112 | . 63 49 Missed 27 | . 13 14 Hits 85 | . 50 35 Projectile 85 | . 50 35 Critical Strikes 3 | . 2 1 Actively Blocked 1 | . . 1 Damage Taken 1469 | . 746 723 Core 274 | . 161 113 Absorbed by Shields . | . . . Redirected to Shielding 54 | . . 54 Core Remaining (%) 100 | 100 . . Volleys Fired 52 | 7 41 4 Largest 2 | 2 2 2 Hottest 100 | 60 100 86 Shots Fired 99 | 14 80 5 Gun 97 | 14 78 5 Cannon . | . . . Launcher . | . . . Special 2 | . 2 . Kinetic 47 | 7 39 1 Thermal 52 | 7 41 4 Explosive . | . . . Electromagnetic . | . . . Robot Hit Streak 17 | 8 17 2 Robot Miss Streak 4 | 1 4 1 Penetration Max . | . . . Secondary Targets 1 | . 1 . Max Gunslinging Chain 1 | . 1 . Shots Hit Robots 80 | 10 63 7 Core Hits 39 | 5 27 7 Critical Kills 1 | . 1 . Critical Parts Destroyed . | . . . Critical Strikes 1 | . 1 . Destroy 1 | . 1 . Melee Attacks 17 | . 9 8 Impact . | . . . Slashing 17 | . 9 8 Piercing . | . . . Sneak Attacks 2 | . 2 . Combat Hostiles . | . . . Follow-up Attacks . | . . . Damage Inflicted 1078 | 119 832 127 Guns 852 | 119 698 35 Cannons . | . . . Explosions . | . . . Melee 202 | . 134 68 Ramming 24 | . . 24 Kinetic 420 | 52 368 . Thermal 432 | 67 330 35 Explosive . | . . . Electromagnetic . | . . . Impact . | . . . Slashing 202 | . 134 68 Piercing . | . . . Highest Corruption 1 | . . 1 Average Corruption 1 | . . 1 Corruption Purged . | . . . Corruption Blocked . | . . . Overload Shots . | . . . Overflow Damage 4 | . 4 . Projectiles . | . . . Explosions . | . . . Melee 4 | . 4 . Knockbacks 1 | . . 1 Impact 1 | . . 1 Kinetic . | . . . Secondary . | . . . Self-Inflicted Damage 3 | . . 3 Shots . | . . . Rammed 13 | . . 13 Targets Rammed 13 | . . 13 Kicked . | . . . Crushed . | . . . Highest Temperature 181 | . 181 . Average Temperature 77 | . 77 . Received Heat Transfer 477 | . 318 159 Siege Activations . | . . . Martial Activations . | . . . Shielding Activations . | . . . Robots Disrupted . | . . . Combat Hostiles . | . . . Robots Corrupted . | . . . Combat Hostiles . | . . . Parts Fried . | . . . Impact Corruptions . | . . . Robots Melted . | . . . Combat Hostiles . | . . . Parts Melted . | . . . Heat Transferred 987 | 150 750 87 Parts Sabotaged . | . . . Parts Stolen . | . . . Parts Stripped . | . . . Power Chain Reactions . | . . . Alert | -11 -10 -10 ------- Run | Yrd Mat Sub Maximum Alert Level . | . . . Low Security (%) 100 | 100 100 . Level 1 . | . . . Level 2 . | . . . Level 3 . | . . . Level 4 . | . . . Level 5 . | . . . High Security . | . . . Max Security . | . . . Peak Influence 74 | 5 74 . Initial 3 | . 3 . Average 23 | 1 28 . Influence Increases 301 | 20 241 40 Destroy 0b10 Robot/C 200 | . 160 40 Destroy 0b10 Robot/NC 50 | 20 30 . Destroy Leader 36 | . 36 . Disable Machine 15 | . 15 . Influence Decreases 301 | 15 246 40 Entered New Map 2 | . 2 . Time Decay 262 | 15 217 30 Lost Part 37 | . 27 10 Squads Dispatched 1 | . 1 . Investigation 1 | . 1 . Extermination . | . . . Reinforcement . | . . . Assault . | . . . Garrison . | . . . Intercept . | . . . Searches Triggered . | . . . Construction Impeded . | . . . Haulers Reinforced . | . . . Active Scanning Responses . | . . . Cargo Convoy Interrupts . | . . . Stealth | -11 -10 -10 --------- Run | Yrd Mat Sub Distress Signals 2 | . 2 . Communications Jammed . | . . . Distress Signals . | . . . Times Spotted 24 | . 16 8 Peak Tracking Total 6 | . 6 6 Tactical Retreats . | . . . Traps | -11 -10 -10 ------- Run | Yrd Mat Sub Traps Triggered . | . . . Indirectly . | . . . Trap Hack Attempts . | . . . Triggered . | . . . Disarmed . | . . . Reprogrammed . | . . . Reused . | . . . Traps Extracted . | . . . Installed . | . . . Triggered . | . . . Machines | -11 -10 -10 ---------- Run | Yrd Mat Sub Machines Disabled 1 | . 1 . Max in Single Turn 1 | . 1 . Machines Repaired . | . . . Machines Dismantled . | . . . Machines Sabotaged . | . . . Overloaded Fab Kills . | . . . Hacking | -11 -10 -10 --------- Run | Yrd Mat Sub Machines Accessed 2 | . 2 . Terminals 2 | . 2 . Fabricators . | . . . Repair Stations . | . . . Recycling Units . | . . . Scanalyzers . | . . . Garrison Access . | . . . Total Hacks 6 | . 6 . Successful 2 | . 2 . Failed 4 | . 4 . Catastrophic . | . . . Database Lockouts . | . . . Manual 6 | . 6 . Terminals 6 | . 6 . Fabricators . | . . . Repair Stations . | . . . Recycling Units . | . . . Scanalyzers . | . . . Garrison Access . | . . . Terminal Hacks . | . . . Fabricator Hacks . | . . . Repair Station Hacks . | . . . Recycling Unit Hacks . | . . . Scanalyzer . | . . . Garrison Access Hacks . | . . . Unauthorized Hacks 2 | . 2 . Terminals 2 | . 2 . Botnet 2 | . 2 . Fabricators . | . . . Repair Stations . | . . . Recycling Units . | . . . Scanalyzers . | . . . Garrison Access . | . . . Data Cores Recovered . | . . . Used . | . . . Hacking Detections 2 | . 2 . Full Trace Events 1 | . 1 . Feedback Events . | . . . Feedback Blocked . | . . . Robot Schematics Acquired . | . . . Robots Built . | . . . Authchips . | . . . Time . | . . . Total Robot Build Rating . | . . . Part Schematics Acquired . | . . . Parts Built . | . . . Authchips . | . . . Time . | . . . Total Part Build Rating . | . . . Part Studies Acquired . | . . . Parts Repaired . | . . . Time . | . . . Parts Recycled . | . . . Recycled Matter . | . . . Retrieved Matter . | . . . Retrieved Components . | . . . Parts Scanalyzed . | . . . Part Schematics Acquired . | . . . Parts Damaged . | . . . Bothacking | -11 -10 -10 ------------ Run | Yrd Mat Sub Used RIF Installer . | . . . Robots Hacked . | . . . Non-combat . | . . . Combat . | . . . Robot Hacks Applied . | . . . Relay Couplers Released . | . . . Fabnet Peak Effective % . | . . . Robots Rewired . | . . . Allies Hacked . | . . . Hacks Repelled . | . . . Allies | -11 -10 -10 -------- Run | Yrd Mat Sub Total Allies . | . . . Largest Group . | . . . Highest-Rated Group . | . . . Highest-Rated Ally . | . . . Total Orders . | . . . Ally Attacks . | . . . Total Damage . | . . . Kills . | . . . Allies Corrupted . | . . . Allies Melted . | . . . Intel | -11 -10 -10 ------- Run | Yrd Mat Sub Active Infowar (turns) 730 | 36 522 172 Terrain 152 | 36 116 . Structural 520 | . 406 114 T.N.C. 58 | . . 58 Robot Analysis Total . | . . . Derelict Logs Recovered . | . . . Drone Launches . | . . . Drone Recoveries . | . . . Exploration | -11 -10 -10 ------------- Run | Yrd Mat Sub Turns Passed 1003 | 117 522 364 Spaces Moved 404 | 56 210 138 Core 12 | 7 3 2 Treads 392 | 49 207 136 Legs . | . . . Wheels . | . . . Hover . | . . . Flight . | . . . Fastest Speed 50 | 50 160 160 Average Speed 160 | 148 162 161 Slowest Speed 320 | 160 320 250 Overloaded Moves . | . . . Propulsion Burnouts . | . . . Robots Hopped . | . . . Potential Cave-ins . | . . . Cave-ins Triggered . | . . . Exploration Rate (%) 17 | 3 32 18 Regions Visited 2 Branch Regions 1 Pre-discovered Areas . | . . . Known Exits Taken . | . . . Unknown Exits Taken 2 | 1 1 . Scrap Searched . | . . . Spaces Dug . | . . . Terrain Destroyed . | . . . Melee . | . . . Projectile . | . . . AOE . | . . . Terrain Rammed 1 | . . 1 Walls Destroyed . | . . . Machines Disabled . | . . . Actions | -11 -10 -10 --------- Run | Yrd Mat Sub Total 611 | 72 290 249 Wait 77 | . 4 73 Move 402 | 55 209 138 Hop . | . . . Pick Up 11 | 2 9 . Fast Attach 13 | 7 2 4 Attach 4 | . 2 2 Detach 3 | . 1 2 Swap 9 | 1 6 2 Drop 9 | . 7 2 Fire 52 | 7 41 4 Melee 17 | . 9 8 Ram 1 | . . 1 Kick . | . . . Crush 13 | . . 13 Escape Stasis . | . . . Rewire . | . . . Trap . | . . . Miscellaneous . | . . . Route ------- -11/Scrapyard -10/Materials (discovered 2 exits: [*Min] / [*Sub]) -10/Subcaves History --------- Turn | Location | Event 15 | -11/Scrapyard | Discovered new exit (range 14) 118 | -11/Scrapyard | Entered Materials 316 | -10/Materials | Build established: Mutant 559 | -10/Materials | Discovered new exit (range 12) 618 | -10/Materials | Derelicts attacked the area 625 | -10/Materials | Discovered new exit (range 7) 637 | -10/Materials | Core integrity fell below 50% 640 | -10/Materials | Entered Subcaves 641 | -10/Subcaves | Approached by a straggling Scientist 929 | -10/Subcaves | Shifting Twisted Machinery released Spk. Treads 980 | -10/Subcaves | Core integrity fell below 20% 985 | -10/Subcaves | Shifting Twisted Machinery released Mak. Thermal Plating 1004 | -10/Subcaves | Destroyed by XU-0GS(R) with Subdweller Beam Cannon Last Messages --------------- Sink. 00977_ Slammed into AI-RV5(R). 00982_ Slammed into ID-HVU(R). Mak. Thermal Plating falls loose from the Twisted Machinery. 00985_ Slammed into ID-HVU(R). 00987_ ID-HVU(R) knocked back. 00987_ Sub. Machine Gun destroyed. 00988_ Slammed into ID-HVU(R). 00989_ Subatomizers dissect the Disposable Heat Sink. 00990_ Slammed into ID-HVU(R). [Achievement: That Tickles] 00998_ Slammed into ID-HVU(R). 00998_ Propulsion Shielding destroyed. 01000_ Slammed into XU-0GS(R). 01002_ Lgt. Treads destroyed. 01003_ Slammed into XU-0GS(R). 01004_ Subatomizers dissect the Disposable Heat Sink. Map ----- +----------------------------------------------------+ | ?????????????????????????????????????????????????? | | ?????????????????????????????????????????????????? | | ?????????????????????????????????????????????????? | | ?????????????????????????????????????????????????? | | ?????????????????????????????????????????????????? | | ?????????????????????????????????????????????????? | | ?????????????????????????????????????????????????? | | ?????????????????????????????????????????????????? | | ?????????????????????????????????????????????????? | | ?????????????????????????????????????????????????? | | ?????????????????????????????????????????????????? | | ?????????????????????????????????????????????????? | | ?????????????????????????????????????????????????? | | ?????????????????????????????????????????????????? | | ?????????????????????????????????????????????????? | | ??????????????????????"??????????????????????????? | | ??????????????????????" ?????????????????????????? | | ??????????????????????" ?????????????????????????? | | ??????????????????????""?????????????????????????? | | ??????????????????????? ####?????????????????????? | | ??????????????????????? # ??????????????????????? | | ???????????????????????# ??????????????????????? | | ???????????????????????# #??????????????????????? | | ???????????????????????#""#???"#?????????????????? | | ???????????????????????#"R#???"##????????????????? | | ???????????????????????# @#?? #####????????????? | | ???????????????????????##R##? ## ##???????????? | | ????????????????????????# ## ##??????????? | | ????????????????????????#R## ##?????????? | | ????????????????????????# [ ????????? | | ???????????????#????????#R ????????? | | ???????????????# ??????#R ????????? | | ???????????????# ##??#; ##### ????????? | | ???????????????# ###; #?????????????????? | | ????????????????" "" " #?????????????????? | | ????????????????"! "" " [ #?????????????????? | | ???????????????? "##"" ## #?????????????????? | | ?????????????????????# " "#####??????#??????????? | | ?????????????????????#""" ##?????## ### ???????? | | ?????????????????????##""! = ##???% ???????? | | ??????????????????????### & ### ???????? | | ????????????????????????## ##????????????? | | ?????????????????????????## #????????????? | | ????????????????"???###???# # # ??????? | | ??????????????#""" ## ##### ##?#?? ?????????? | | ??????????????# " "" # #??? ? ?????????? | | ??????????????#""""" ### #?? ??????????? | | ???????????????"""#####"" #??##? ??????????? | | ??????????????????????#"" #????? ?????????? | | ??????????????????????# ##???? ?????????? | +----------------------------------------------------+ Best States ------------- Heat Dissipation 25 Energy Generation 15 Energy Capacity 250 Matter Stores 300 Matter Capacity 300 Sight Range 16 Terrain Scan Range 16 Terrain Scan Density 10 Propulsion Shielding 33 Evasion (%) 40 Recoil Reduction 2 Item Schematics ----------------- None Robot Schematics ------------------ None Fabricated ------------ Nothing Repaired ---------- Nothing Studied --------- None Alien Tech Used ----------------- None Achievements -------------- That Tickles Challenges ------------ None Game ------ Seed OmegaNodeHumpback Manual? 0 Play Time 00:11:54 Cumulative 25.5 hours Start 2026.06.23 @ 17:51:16 End 2026.06.23 @ 18:00:33 Sessions 1 Manual Loads 0 Difficulty Rogue Special Mode None Game No. 47 Rogue 47 Adventurer 0 Explorer 0 Win Type - Total 0 Types 0/0/0/0/0/0/0/0/0/0 Lore% 15 Gallery% 26 Achievement% 18 Wizard Run 0 Options --------- Layout 1 ASCII 0 Keyboard 1 Movement Numpad Keybinds 0 Fullscreen 2 Font 24/Smallcaps Map View 50x35 Zoom Use 0% Tactical HUD 1 Map Filters NONE Filters NONE Steam 1 RUN: ab4e2b97-157f-495b-a3c1-31a7148ac85a